Department family,Entity,Date,Expense type,Expense area,Supplier,Transaction number,Amount
Department of Health,University Hospitals of Morecambe Bay NHS Foundation Trust,01-Mar-17,Laboratory Testing,Pathology,LANCASHIRE TEACHING HOSPITALS NHS FOUNDATION TRUST,1231501,38673.48
Department of Health,University Hospitals of Morecambe Bay NHS Foundation Trust,01-Mar-17,Rates,Estates & Facilities,BOROUGH OF BARROW-IN-FURNESS,1238423,55855
Department of Health,University Hospitals of Morecambe Bay NHS Foundation Trust,01-Mar-17,Gas,Estates & Facilities,CORONA ENERGY RETAIL 4 LTD,1237352,39459.52
Department of Health,University Hospitals of Morecambe Bay NHS Foundation Trust,01-Mar-17,Gas,Estates & Facilities,CORONA ENERGY RETAIL 4 LTD,1237357,26020.08
Department of Health,University Hospitals of Morecambe Bay NHS Foundation Trust,01-Mar-17,Waiting List (Additional Capacity),Surgery,DMC HEALTHCARE LTD,1233200,39508
Department of Health,University Hospitals of Morecambe Bay NHS Foundation Trust,01-Mar-17,Maintenance Contract,Information Technology,GE HEALTHCARE,1229672,43062.3
Department of Health,University Hospitals of Morecambe Bay NHS Foundation Trust,01-Mar-17,Agency Midwives,Womens & Childrens,HB RETINUE LTD,1237253,24685.42
Department of Health,University Hospitals of Morecambe Bay NHS Foundation Trust,01-Mar-17,Rates,Estates & Facilities,LANCASTER CITY COUNCIL,1238413,50529
Department of Health,University Hospitals of Morecambe Bay NHS Foundation Trust,01-Mar-17,NHS Product Sales,Trust Wide,NHS SUPPLY CHAIN,1237834,124301.09
Department of Health,University Hospitals of Morecambe Bay NHS Foundation Trust,01-Mar-17,Managed Service Contract,Corporate,ORACLE CORPORATION UK LTD,1237755,91062.15
Department of Health,University Hospitals of Morecambe Bay NHS Foundation Trust,01-Mar-17,Drugs,Pharmacy,ROCHE PRODUCTS LTD,1233869,43752.65
Department of Health,University Hospitals of Morecambe Bay NHS Foundation Trust,01-Mar-17,Drugs,Pharmacy,ROCHE PRODUCTS LTD,1233870,41079.37
Department of Health,University Hospitals of Morecambe Bay NHS Foundation Trust,01-Mar-17,IT System - Monthly charge,Information Technology,SECTRA LIMITED,1233027,31295.35
Department of Health,University Hospitals of Morecambe Bay NHS Foundation Trust,01-Mar-17,Maintenance Contract,Information Technology,TECHNIDATA UK,1233907,21378
Department of Health,University Hospitals of Morecambe Bay NHS Foundation Trust,01-Mar-17,Create Carriageway & Pathways,Capital Services,THE NEIL MARTIN GROUP,1238357,24602.14
Department of Health,University Hospitals of Morecambe Bay NHS Foundation Trust,08-Mar-17,Blood & Blood components contract,Core Clinical,NHS BLOOD & TRANSPLANT,1239248,35908.92
Department of Health,University Hospitals of Morecambe Bay NHS Foundation Trust,08-Mar-17,Blood & Blood components contract,Core Clinical,NHS BLOOD & TRANSPLANT,1239249,54352.67
Department of Health,University Hospitals of Morecambe Bay NHS Foundation Trust,08-Mar-17,Recharge Specialist Registrars,Trust Wide,THE PENNINE ACUTE HOSPITALS NHS TRUST,1239228,40000
Department of Health,University Hospitals of Morecambe Bay NHS Foundation Trust,08-Mar-17,Recharge Specialist Registrars,Trust Wide,THE PENNINE ACUTE HOSPITALS NHS TRUST,1239229,88000
Department of Health,University Hospitals of Morecambe Bay NHS Foundation Trust,08-Mar-17,Recharge Specialist Registrars,Trust Wide,THE PENNINE ACUTE HOSPITALS NHS TRUST,1239231,342000
Department of Health,University Hospitals of Morecambe Bay NHS Foundation Trust,08-Mar-17,Recharge Specialist Registrars,Trust Wide,THE PENNINE ACUTE HOSPITALS NHS TRUST,1239232,64000
Department of Health,University Hospitals of Morecambe Bay NHS Foundation Trust,08-Mar-17,Drugs,Pharmacy,AAH PHARMACEUTICALS LTD,1238739,258471.6
Department of Health,University Hospitals of Morecambe Bay NHS Foundation Trust,08-Mar-17,Managed Service Contract,Corporate,CARVETI PARTNERSHIP LTD,1238644,35135.89
Department of Health,University Hospitals of Morecambe Bay NHS Foundation Trust,08-Mar-17,Managed Service Contract,Corporate,CARVETI PARTNERSHIP LTD,1238645,69551.98
Department of Health,University Hospitals of Morecambe Bay NHS Foundation Trust,08-Mar-17,Medical Equipment,Theatres,DESOUTTER MEDICAL LTD,1238361,156949.37
Department of Health,University Hospitals of Morecambe Bay NHS Foundation Trust,08-Mar-17,Medical Equipment,Theatres,FUKUDA DENSHI UK,1239511,58944
Department of Health,University Hospitals of Morecambe Bay NHS Foundation Trust,08-Mar-17,Medical Equipment,Ophthalmology,HAAG-STREIT UK,1239505,40000.8
Department of Health,University Hospitals of Morecambe Bay NHS Foundation Trust,08-Mar-17,Agency Medical Staff - Management Costs,Trust Wide,HB RETINUE LTD,1218726,31394.96
Department of Health,University Hospitals of Morecambe Bay NHS Foundation Trust,08-Mar-17,Agency Medical Staff - Management Costs,Trust Wide,HB RETINUE LTD,1218732,36246.85
Department of Health,University Hospitals of Morecambe Bay NHS Foundation Trust,08-Mar-17,Agency Medical Staff - Management Costs,Trust Wide,HB RETINUE LTD,1225095,38879.07
Department of Health,University Hospitals of Morecambe Bay NHS Foundation Trust,08-Mar-17,Agency Medical Staff - Management Costs,Trust Wide,HB RETINUE LTD,1225096,36274.49
Department of Health,University Hospitals of Morecambe Bay NHS Foundation Trust,08-Mar-17,Agency Medical Staff - Management Costs,Trust Wide,HB RETINUE LTD,1232781,53111.6
Department of Health,University Hospitals of Morecambe Bay NHS Foundation Trust,08-Mar-17,Agency Midwives,Womens & Childrens,HB RETINUE LTD,1238798,31124.79
Department of Health,University Hospitals of Morecambe Bay NHS Foundation Trust,08-Mar-17,Maintenance Contract Management,Trust Wide,LEASEGUARD GROUP LTD,1237903,33281.88
Department of Health,University Hospitals of Morecambe Bay NHS Foundation Trust,08-Mar-17,Engineering Services,Capital Services,MATRIX CONTROL SOLUTIONS LIMITED,1239932,38307.59
Department of Health,University Hospitals of Morecambe Bay NHS Foundation Trust,08-Mar-17,NHS Product Sales,Trust Wide,NHS SUPPLY CHAIN,1239467,132560.74
Department of Health,University Hospitals of Morecambe Bay NHS Foundation Trust,08-Mar-17,Building Services,Capital Services,PININGTON CONSTRUCTION,1239931,37624.8
Department of Health,University Hospitals of Morecambe Bay NHS Foundation Trust,08-Mar-17,Additional Capacity Beds,Medicine,RISEDALE ESTATES LTD,1239859,52000
Department of Health,University Hospitals of Morecambe Bay NHS Foundation Trust,08-Mar-17,Drugs,Pharmacy,ROCHE PRODUCTS LTD,1234281,41612.34
Department of Health,University Hospitals of Morecambe Bay NHS Foundation Trust,08-Mar-17,Windows Replacement,Capital Services,SG ALUMINIUM LIMITED,1238199,46958.43
Department of Health,University Hospitals of Morecambe Bay NHS Foundation Trust,08-Mar-17,Building Services,Capital Services,VMC DEVELOPMENTS LTD,1239935,161004.89
Department of Health,University Hospitals of Morecambe Bay NHS Foundation Trust,15-Mar-17,Speech & Language Therapy Services,Core Clinical,CUMBRIA PARTNERSHIP NHS TRUST,1241156,30800.68
Department of Health,University Hospitals of Morecambe Bay NHS Foundation Trust,15-Mar-17,Engineering/Electrical Services,Capital Services,CHRIS BOWKER LIMITED,1241547,66468.92
Department of Health,University Hospitals of Morecambe Bay NHS Foundation Trust,15-Mar-17,Electrical Services,Capital Services,EDWARD DEWHURST LTD,1241356,366669.26
Department of Health,University Hospitals of Morecambe Bay NHS Foundation Trust,15-Mar-17,Medical Equipment,Radiology,GE MEDICAL SYSTEMS LTD,1241025,59184
Department of Health,University Hospitals of Morecambe Bay NHS Foundation Trust,15-Mar-17,Agency Nurses,Trust Wide,HB RETINUE LTD,1234037,29851.1
Department of Health,University Hospitals of Morecambe Bay NHS Foundation Trust,15-Mar-17,Agency Nurses,Trust Wide,HB RETINUE LTD,1235639,37118.03
Department of Health,University Hospitals of Morecambe Bay NHS Foundation Trust,15-Mar-17,Agency Nurses,Trust Wide,HB RETINUE LTD,1237265,21408.3
Department of Health,University Hospitals of Morecambe Bay NHS Foundation Trust,15-Mar-17,Agency Medical Staff - Management Costs,Trust Wide,HB RETINUE LTD,1238797,46818.31
Department of Health,University Hospitals of Morecambe Bay NHS Foundation Trust,15-Mar-17,Agency Nurses,Trust Wide,HB RETINUE LTD,1238806,43111.85
Department of Health,University Hospitals of Morecambe Bay NHS Foundation Trust,15-Mar-17,Agency Midwives,Womens & Childrens,HB RETINUE LTD,1240285,36464.34
Department of Health,University Hospitals of Morecambe Bay NHS Foundation Trust,15-Mar-17,Agency Nurses,Trust Wide,HB RETINUE LTD,1240292,34310.23
Department of Health,University Hospitals of Morecambe Bay NHS Foundation Trust,15-Mar-17,Building Contractors,Capital Services,INTEGRATED HEALTH PROJECTS,1241549,428688.92
Department of Health,University Hospitals of Morecambe Bay NHS Foundation Trust,15-Mar-17,Payroll Services,Trust Wide,NHS SHARED BUSINESS SERVICE LTD,1235739,23692.87
Department of Health,University Hospitals of Morecambe Bay NHS Foundation Trust,15-Mar-17,Maintenance Contract,Radiology,NHS SUPPLY CHAIN,1220185,-58373.2
Department of Health,University Hospitals of Morecambe Bay NHS Foundation Trust,15-Mar-17,Maintenance Contract,Radiology,NHS SUPPLY CHAIN,1219244,29109.15
Department of Health,University Hospitals of Morecambe Bay NHS Foundation Trust,15-Mar-17,Maintenance Contract,Radiology,NHS SUPPLY CHAIN,1240509,77180.3
Department of Health,University Hospitals of Morecambe Bay NHS Foundation Trust,15-Mar-17,Maintenance Contract,Radiology,NHS SUPPLY CHAIN,1240551,37905.73
Department of Health,University Hospitals of Morecambe Bay NHS Foundation Trust,15-Mar-17,NHS Product Sales,Trust Wide,NHS SUPPLY CHAIN,1241188,138584.21
Department of Health,University Hospitals of Morecambe Bay NHS Foundation Trust,15-Mar-17,Medical Equipment,Endoscopy,OLYMPUS KEYMED,1231618,64800
Department of Health,University Hospitals of Morecambe Bay NHS Foundation Trust,15-Mar-17,Engineering Services,Capital Services,PETTIT SINGLETON ASSOCIATES,1241346,22954
Department of Health,University Hospitals of Morecambe Bay NHS Foundation Trust,15-Mar-17,Building Services,Capital Services,PININGTON CONSTRUCTION,1241396,38998.99
Department of Health,University Hospitals of Morecambe Bay NHS Foundation Trust,15-Mar-17,Building Services,Capital Services,PININGTON CONSTRUCTION,1241399,29691.84
Department of Health,University Hospitals of Morecambe Bay NHS Foundation Trust,22-Mar-17,CNST Premium,Corporate,NHS LITIGATION AUTHORITY,1242833,870571
Department of Health,University Hospitals of Morecambe Bay NHS Foundation Trust,22-Mar-17,Refund Underperformance,Corporate,NHS WIGAN BOROUGH CCG,1243042,81791
Department of Health,University Hospitals of Morecambe Bay NHS Foundation Trust,22-Mar-17,MRI Scans (Mobile Unit),Radiology,ALLIANCE MEDICAL LTD,1237272,32760
Department of Health,University Hospitals of Morecambe Bay NHS Foundation Trust,22-Mar-17,Fire Protection,Capital Services,ARDERE SOLUTIONS LTD,1242452,35247.06
Department of Health,University Hospitals of Morecambe Bay NHS Foundation Trust,22-Mar-17,Managed Service Contract,Pathology,BECKMAN COULTER UK LTD,1234190,160935.41
Department of Health,University Hospitals of Morecambe Bay NHS Foundation Trust,22-Mar-17,Laundry,Estates & Facilities,BERENDSEN UK LTD,1237968,35475.76
Department of Health,University Hospitals of Morecambe Bay NHS Foundation Trust,22-Mar-17,Laundry,Estates & Facilities,BERENDSEN UK LTD,1237978,25820.27
Department of Health,University Hospitals of Morecambe Bay NHS Foundation Trust,22-Mar-17,Pacemakers,Cardiac Centre,BOSTON SCIENTIFIC LTD,1238494,37800
Department of Health,University Hospitals of Morecambe Bay NHS Foundation Trust,22-Mar-17,Telephone Charges,Estates & Facilities,BRITISH TELECOM PLC,1241084,51279.51
Department of Health,University Hospitals of Morecambe Bay NHS Foundation Trust,22-Mar-17,Gas,Estates & Facilities,CORONA ENERGY RETAIL 4 LTD,1243260,34471.6
Department of Health,University Hospitals of Morecambe Bay NHS Foundation Trust,22-Mar-17,Orthotics Service,Trust Wide,CRISPIN ORTHOTICS LTD,1237905,29311.02
Department of Health,University Hospitals of Morecambe Bay NHS Foundation Trust,22-Mar-17,Orthotics Stock,Trust Wide,CRISPIN ORTHOTICS LTD,1237907,26358.5
Department of Health,University Hospitals of Morecambe Bay NHS Foundation Trust,22-Mar-17,IT Hardware,Information Technology,DELL COMPUTER CORPORATION LTD,1241410,36960
Department of Health,University Hospitals of Morecambe Bay NHS Foundation Trust,22-Mar-17,IT Hardware,Information Technology,DELL COMPUTER CORPORATION LTD,1241603,60217.2
Department of Health,University Hospitals of Morecambe Bay NHS Foundation Trust,22-Mar-17,System Implementation,Information Technology,EVOLUTIONARY SYSTEMS COMPANY LTD,1243215,45750
Department of Health,University Hospitals of Morecambe Bay NHS Foundation Trust,22-Mar-17,Agency Medical Staff - Management Costs,Trust Wide,HB RETINUE LTD,1237256,30891.18
Department of Health,University Hospitals of Morecambe Bay NHS Foundation Trust,22-Mar-17,Agency Medical Staff - Management Costs,Trust Wide,HB RETINUE LTD,1240288,37190.59
Department of Health,University Hospitals of Morecambe Bay NHS Foundation Trust,22-Mar-17,Agency Nurses,Trust Wide,HB RETINUE LTD,1242013,91422.42
Department of Health,University Hospitals of Morecambe Bay NHS Foundation Trust,22-Mar-17,Agency Medical Staff - Management Costs,Trust Wide,HB RETINUE LTD,1242018,46776.63
Department of Health,University Hospitals of Morecambe Bay NHS Foundation Trust,22-Mar-17,Agency Medical Staff - Management Costs,Trust Wide,HB RETINUE LTD,1242061,44813.48
Department of Health,University Hospitals of Morecambe Bay NHS Foundation Trust,22-Mar-17,Agency Medical Staff - Management Costs,Trust Wide,HB RETINUE LTD,1242062,44043.59
Department of Health,University Hospitals of Morecambe Bay NHS Foundation Trust,22-Mar-17,Agency Medical Staff - Management Costs,Trust Wide,HB RETINUE LTD,1242063,41485
Department of Health,University Hospitals of Morecambe Bay NHS Foundation Trust,22-Mar-17,Friends & Family Service,Corporate,HEALTHCARE COMMUNICATIONS UK LTD,1243156,44408.42
Department of Health,University Hospitals of Morecambe Bay NHS Foundation Trust,22-Mar-17,Building Contractors,Capital Services,INTEGRATED HEALTH PROJECTS,1242436,23250.24
Department of Health,University Hospitals of Morecambe Bay NHS Foundation Trust,22-Mar-17,Building Contractors,Capital Services,INTEGRATED HEALTH PROJECTS,1242441,34725.16
Department of Health,University Hospitals of Morecambe Bay NHS Foundation Trust,22-Mar-17,Building Contractors,Capital Services,INTEGRATED HEALTH PROJECTS,1242442,20833.53
Department of Health,University Hospitals of Morecambe Bay NHS Foundation Trust,22-Mar-17,Building Contractors,Capital Services,INTEGRATED HEALTH PROJECTS,1242443,31641.62
Department of Health,University Hospitals of Morecambe Bay NHS Foundation Trust,22-Mar-17,Building Contractors,Capital Services,INTEGRATED HEALTH PROJECTS,1242445,34593.79
Department of Health,University Hospitals of Morecambe Bay NHS Foundation Trust,22-Mar-17,Building Contractors,Capital Services,INTEGRATED HEALTH PROJECTS,1243206,910000
Department of Health,University Hospitals of Morecambe Bay NHS Foundation Trust,22-Mar-17,Drugs,Pharmacy,LLOYDS PHARMACY LIMITED,1239451,444625.36
Department of Health,University Hospitals of Morecambe Bay NHS Foundation Trust,22-Mar-17,Rent,Medical Records,MAPELEY STEPS LTD,1237817,35810.7
Department of Health,University Hospitals of Morecambe Bay NHS Foundation Trust,22-Mar-17,Engineering Services,Capital Services,MATRIX CONTROL SOLUTIONS LIMITED,1243253,58816.15
Department of Health,University Hospitals of Morecambe Bay NHS Foundation Trust,22-Mar-17,NHS Product Sales,Trust Wide,NHS SUPPLY CHAIN,1242490,139975.81
Department of Health,University Hospitals of Morecambe Bay NHS Foundation Trust,22-Mar-17,Electricity,Estates & Facilities,NPOWER,1243241,72359.51
Department of Health,University Hospitals of Morecambe Bay NHS Foundation Trust,22-Mar-17,Electricity,Estates & Facilities,NPOWER,1243243,27419.35
Department of Health,University Hospitals of Morecambe Bay NHS Foundation Trust,22-Mar-17,Electricity,Estates & Facilities,NPOWER,1243244,63552.54
Department of Health,University Hospitals of Morecambe Bay NHS Foundation Trust,22-Mar-17,Drugs,Pharmacy,ROCHE PRODUCTS LTD,1236970,32604.89
Department of Health,University Hospitals of Morecambe Bay NHS Foundation Trust,22-Mar-17,Guradrails & Platform Steps,Capital Services,SAFESITE LIMITED,1231924,30550.66
Department of Health,University Hospitals of Morecambe Bay NHS Foundation Trust,22-Mar-17,IT Software,Information Technology,TRUSTMARQUE SOLUTIONS,1226338,37058.4
Department of Health,University Hospitals of Morecambe Bay NHS Foundation Trust,22-Mar-17,Building Services,Capital Services,VMC DEVELOPMENTS LTD,1243199,166303.31
Department of Health,University Hospitals of Morecambe Bay NHS Foundation Trust,29-Mar-17,Drugs,Pharmacy,BAYER DIAGNOSTIC PRODUCTS EUROPE LIMITED,1242771,31464
Department of Health,University Hospitals of Morecambe Bay NHS Foundation Trust,29-Mar-17,Managed Service Contract,Pathology,BECKMAN COULTER UK LTD,1241048,163591.79
Department of Health,University Hospitals of Morecambe Bay NHS Foundation Trust,29-Mar-17,Drugs,Pharmacy,BIOTEST UK LTD,1241220,31000
Department of Health,University Hospitals of Morecambe Bay NHS Foundation Trust,29-Mar-17,IT Hardware,Information Technology,CAPITA IT SERVICES,1241961,155126.81
Department of Health,University Hospitals of Morecambe Bay NHS Foundation Trust,29-Mar-17,Drugs,Pharmacy,CELGENE LTD,1235467,-34776
Department of Health,University Hospitals of Morecambe Bay NHS Foundation Trust,29-Mar-17,Boiler House Scheme,Capital Services,CHRIS BOWKER LIMITED,1244462,176258.98
Department of Health,University Hospitals of Morecambe Bay NHS Foundation Trust,29-Mar-17,Professional Services - Care providers,Medicine,CHS HEALTHCARE,1240395,25080
Department of Health,University Hospitals of Morecambe Bay NHS Foundation Trust,29-Mar-17,Maintenance Contract,Information Technology,CSC COMPUTER SCIENCES LTD,1244428,166646.25
Department of Health,University Hospitals of Morecambe Bay NHS Foundation Trust,29-Mar-17,Architects Fees,Capital Services,DAY ARCHITECTURAL LTD,1242965,29700
Department of Health,University Hospitals of Morecambe Bay NHS Foundation Trust,29-Mar-17,Medical Equipment,Theatres,DESOUTTER MEDICAL LTD,1242995,88447.16
Department of Health,University Hospitals of Morecambe Bay NHS Foundation Trust,29-Mar-17,Medical Equipment,Theatres,DESOUTTER MEDICAL LTD,1244435,142871.76
Department of Health,University Hospitals of Morecambe Bay NHS Foundation Trust,29-Mar-17,Waiting List (Additional Capacity),Surgery,DMC HEALTHCARE LTD,1242297,42977
Department of Health,University Hospitals of Morecambe Bay NHS Foundation Trust,29-Mar-17,Electrical Services,Capital Services,EDWARD DEWHURST LTD,1244455,124340.02
Department of Health,University Hospitals of Morecambe Bay NHS Foundation Trust,29-Mar-17,Electrical Services,Capital Services,EDWARD DEWHURST LTD,1244456,353601.08
Department of Health,University Hospitals of Morecambe Bay NHS Foundation Trust,29-Mar-17,Electrical Services,Capital Services,EDWARD DEWHURST LTD,1244458,48600.48
Department of Health,University Hospitals of Morecambe Bay NHS Foundation Trust,29-Mar-17,Management Survey,Capital Services,ENVIRONMENTAL ESSENTIALS LTD,1243211,27000
Department of Health,University Hospitals of Morecambe Bay NHS Foundation Trust,29-Mar-17,Maintenance Contract,Information Technology,HEALTHCARE SOFTWARE SOLUTIONS LTD,1239681,30636.48
Department of Health,University Hospitals of Morecambe Bay NHS Foundation Trust,29-Mar-17,Quantity Surveyors,Capital Services,HOLDEN & LEE,1242967,51900
Department of Health,University Hospitals of Morecambe Bay NHS Foundation Trust,29-Mar-17,IT Hardware,Information Technology,INSIGHT DIRECT (UK) LTD,1244446,33882
Department of Health,University Hospitals of Morecambe Bay NHS Foundation Trust,29-Mar-17,Rates,Estates & Facilities,LANCASTER CITY COUNCIL,1244474,47994
Department of Health,University Hospitals of Morecambe Bay NHS Foundation Trust,29-Mar-17,Agency Doctor,Anaesthetics,MULTIVERSE VIEWS LIMITED,1244720,60056
Department of Health,University Hospitals of Morecambe Bay NHS Foundation Trust,29-Mar-17,Medical Equipment,Endoscopy,OLYMPUS KEYMED,1244988,134998.97
Department of Health,University Hospitals of Morecambe Bay NHS Foundation Trust,29-Mar-17,Drugs,Pharmacy,ROCHE PRODUCTS LTD,1243400,42403.31
Department of Health,University Hospitals of Morecambe Bay NHS Foundation Trust,29-Mar-17,Drugs,Pharmacy,ROCHE PRODUCTS LTD,1241705,53389
Department of Health,University Hospitals of Morecambe Bay NHS Foundation Trust,29-Mar-17,Drugs,Pharmacy,ROCHE PRODUCTS LTD,1241706,30081.9
Department of Health,University Hospitals of Morecambe Bay NHS Foundation Trust,29-Mar-17,Drugs,Pharmacy,ROCHE PRODUCTS LTD,1243619,46127.49
Department of Health,University Hospitals of Morecambe Bay NHS Foundation Trust,29-Mar-17,Waiting List (Additional Capacity),Surgery,SPIRE HEALTHCARE LTD,1239130,135672.41
Department of Health,University Hospitals of Morecambe Bay NHS Foundation Trust,29-Mar-17,Medical Gas Survey,Capital Services,TOPSCAN,1243207,36684
Department of Health,University Hospitals of Morecambe Bay NHS Foundation Trust,29-Mar-17,Building Services,Capital Services,VMC DEVELOPMENTS LTD,1244464,52042.74
